bitfinex/quotes_SOLUSD_20220210
["timestamp","ask_amount","ask_price","bid_price","bid_amount"]
[1644502921482,14.0165,107.06,106.97,4.672]
[1644502921878,14.0165,107.06,106.97,6.73880748]
[1644502922781,14.0165,107.06,106.98,14.0161]
[1644502923181,14.0165,107.06,106.97,4.672]
[1644502923381,25.2665,107.06,106.97,4.672]
[1644502923581,27.49772154,107.06,106.97,4.672]
[1644502924284,27.49772154,107.06,106.97,4.922]
[1644502924981,4.672,107.05,106.97,4.672]
[1644502925182,14.0209,107.03,106.96,34.86614887]
[1644502925384,14.0209,107.03,106.96,34.84214887]
[1644502926284,14.0209,107.03,106.94,20.03615696]
[1644502926486,14.0209,107.03,106.94,15.61315696]
[1644502926685,14.0209,107.03,106.94,14.2954]
[1644502927085,4.673,107.04,106.94,14.2954]
[1644502927286,14.0179,107.05,106.95,53.10684078]
[1644502927486,14.0179,107.05,106.99,37.44573432]
[1644502927888,104.9649,107.08,106.99,37.69573432]
[1644502928109,16.669194,107.07,106.99,37.69573432]
[1644502928310,14.0161,107.06,106.99,37.69573432]
[1644502928712,11.25,107.08,106.99,51.71173432]
[1644502929016,1.29841169,107.14,107.0,109.661]
[1644502929211,1.29841169,107.14,107.0,17.73778744]
[1644502929411,4.668,107.13,107.0,19.31678744]
[1644502929611,4.67,107.14,107.01,5.98775696]
[1644502929812,0.02789049,107.15,107.01,22.17]
[1644502930213,14.0075,107.13,107.01,4.67]
[1644502930413,4.668,107.12,107.01,0.25]
[1644502930612,29.1947,107.12,107.01,0.25]
[1644502930812,40.4447,107.12,107.01,0.25]
[1644502931013,4.668,107.12,107.01,0.25]
[1644502931318,4.668,107.12,107.03,45.34538004]
[1644502931517,14.008,107.13,107.04,4.668]
[1644502931715,14.008,107.13,107.03,45.59538004]
[1644502932015,14.008,107.13,107.04,0.25]
[1644502932716,74.74649049,107.15,107.05,14.0074]
[1644502932916,63.49649049,107.15,107.05,14.0074]
[1644502933117,38.66569049,107.15,107.05,14.2574]
[1644502933717,38.66569049,107.15,107.05,14.0074]
[1644502934118,14.03429049,107.15,107.05,14.0074]
[1644502934919,0.02789049,107.15,107.05,14.0074]
[1644502935123,35.52469049,107.17,107.05,14.2574]
[1644502935419,4.668,107.16,107.05,14.2574]
[1644502935621,0.02789049,107.16,107.05,18.9254]
[1644502935921,35.52469049,107.17,107.05,18.9254]
[1644502936119,35.52469049,107.17,107.05,14.2574]
[1644502936120,0.02789049,107.16,107.05,14.2574]
[1644502936320,14.03169049,107.16,107.05,24.9254]
[1644502936525,14.03169049,107.16,107.05,18.9254]
[1644502936725,14.03169049,107.16,107.05,24.9254]
[1644502936922,14.03169049,107.16,107.05,18.9254]
[1644502937123,16.26291203,107.16,107.05,18.9254]
[1644502937322,14.03169049,107.16,107.05,14.2574]
[1644502937923,14.03169049,107.16,107.05,14.0074]
[1644502938127,0.02789049,107.16,107.05,21.82418744]
[1644502938327,0.02789049,107.16,107.05,33.07418744]
[1644502938525,0.02789049,107.16,107.05,42.00755903]
[1644502938725,0.02789049,107.19,107.05,43.32531599]
[1644502938925,0.02789049,107.16,107.05,43.32531599]
[1644502939126,0.02789049,107.19,107.05,43.32531599]
[1644502939328,0.02789049,107.18,107.05,41.75852855]
[1644502939736,13.9996,107.19,107.05,41.75852855]
[1644502939928,0.02789049,107.18,107.06,1.81241484]
[1644502940128,0.02789049,107.18,107.09,13.9993]
[1644502940330,13.9996,107.19,107.09,14.2493]
[1644502940533,0.02789049,107.2,107.09,14.2493]
[1644502940731,72.96549049,107.21,107.09,20.2493]
[1644502941134,72.96549049,107.21,107.09,14.2493]
[1644502941332,72.96549049,107.21,107.09,20.2493]
[1644502941732,0.02789049,107.21,107.09,31.4993]
[1644502941935,13.9968,107.22,107.1,4.666]
[1644502941936,14.02469049,107.22,107.1,4.666]
[1644502942135,14.02469049,107.22,107.13,13.9968]
[1644502942332,14.02469049,107.22,107.13,14.2468]
[1644502942333,13.9968,107.22,107.13,14.2468]
[1644502944136,67.81629049,107.24,107.13,14.2468]
[1644502944342,49.1286,107.24,107.13,14.2468]
[1644502944737,49.1286,107.24,107.13,20.2468]
[1644502945037,49.1286,107.24,107.13,14.2468]
[1644502945636,49.1286,107.24,107.14,4.664]
[1644502945839,49.1286,107.24,107.15,60.4404047]
[1644502947661,63.1226,107.24,107.15,60.6904047]
[1644502947861,4.664,107.23,107.15,46.6974047]
[1644502948261,2.23122154,107.22,107.15,46.6974047]
[1644502948661,62.60982154,107.24,107.15,46.6974047]
[1644502948861,13.9971,107.22,107.15,46.6974047]
[1644502949364,13.9971,107.22,107.13,13.9965]
[1644502949566,13.9971,107.22,107.11,22.5704]
[1644502949765,27.50621203,107.22,107.11,22.5704]
[1644502950164,27.50621203,107.22,107.11,36.5685]
[1644502950363,27.50621203,107.22,107.12,42.16795161]
[1644502950666,14.0009,107.19,107.12,42.16795161]
[1644502950869,14.0009,107.19,107.12,42.41795161]
[1644502951064,4.665,107.21,107.12,42.16795161]
[1644502951263,4.665,107.21,107.12,42.41795161]
[1644502951865,4.665,107.21,107.12,56.41525161]
[1644502952365,0.02789049,107.22,107.12,56.41525161]
[1644502952366,0.02789049,107.23,107.12,56.41525161]
[1644502952665,0.02789049,107.22,107.12,56.41525161]
[1644502952864,13.997,107.22,107.12,56.41525161]
[1644502953665,4.665,107.23,107.12,58.22766645]
[1644502953865,13.9947,107.23,107.12,64.22766645]
[1644502954767,13.9947,107.23,107.12,62.41525161]
[1644502954970,13.9947,107.23,107.12,64.22766645]
[1644502955169,13.9947,107.23,107.12,56.41525161]
[1644502955771,13.9947,107.23,107.12,62.41525161]
[1644502956173,13.9947,107.23,107.12,67.08025161]
[1644502957074,113.0,107.22,107.11,46.6505]
[1644502957277,13.9984,107.2,107.09,1.31775696]
[1644502957480,11.25,107.19,107.05,1.31775696]
[1644502957674,11.25,107.19,107.02,2.64172379]
[1644502957675,53.4104,107.18,107.03,1.31775696]
[1644502957874,11.27789049,107.17,107.02,14.0098]
[1644502958079,4.69589049,107.16,107.03,41.18989874]
[1644502958274,14.0103,107.14,107.03,41.18989874]
[1644502958675,14.0103,107.14,107.03,47.18989874]
[1644502958874,14.0103,107.14,107.04,14.0073]
[1644502959076,0.02789049,107.16,107.04,26.57505696]
[1644502959276,0.02789049,107.17,107.05,98.408]
[1644502959475,25.7035212,107.21,107.06,23.194]
[1644502959476,0.02789049,107.16,107.06,23.194]
[1644502959675,0.02789049,107.17,107.08,41.17453744]
[1644502959878,14.02909049,107.18,107.1,13.9999]
[1644502960079,14.0012,107.18,107.1,13.9999]
[1644502960376,14.0012,107.18,107.1,14.2499]
[1644502960778,14.0012,107.18,107.1,13.9999]
[1644502960982,14.0012,107.18,107.08,41.17453744]
[1644502961178,14.0012,107.18,107.09,0.25]
[1644502961381,14.0012,107.18,107.08,41.17453744]
[1644502961580,14.0012,107.18,107.08,55.17663744]
[1644502961978,18.6682,107.18,107.08,55.17663744]
[1644502962178,14.0012,107.18,107.08,55.17663744]
[1644502962379,11.25,107.17,107.05,5.98475696]
[1644502962581,14.0094,107.14,107.03,1.31775696]
[1644502962777,4.668,107.13,107.02,1.31775696]
[1644502962978,11.25,107.14,107.02,4.668]
[1644502963381,46.7066,107.12,107.03,43.06300647]
[1644502963578,14.0105,107.1,107.03,43.06300647]
[1644502963778,14.0105,107.1,107.03,43.31300647]
[1644502963978,14.0105,107.1,107.03,43.06300647]
[1644502964179,14.0105,107.1,107.02,4.668]
[1644502964381,15.92,107.09,107.02,4.668]
[1644502964580,14.0179,107.07,107.02,4.668]
[1644502964780,14.0179,107.07,107.0,0.024]
[1644502964979,14.0179,107.07,106.97,1.34175696]
[1644502965182,14.0179,107.07,106.98,44.3462365]
[1644502965580,14.0179,107.07,106.97,4.695]
[1644502965780,29.9399,107.07,106.97,0.024]
[1644502965979,29.9399,107.07,106.95,1.34175696]
[1644502966181,0.31635878,107.06,106.95,0.024]
[1644502966382,14.0256,107.03,106.94,0.024]
[1644502966582,29.9486,107.03,106.92,48.3761157]
[1644502966791,29.9486,107.03,106.92,48.3521157]
[1644502966982,0.30271557,107.02,106.92,0.024]
[1644502967192,15.924,107.01,106.9,0.024]
[1644502967382,14.0321,106.98,106.88,1.34175696]
[1644502967583,25.2821,106.98,106.89,0.024]
[1644502967787,25.2821,106.98,106.88,4.675]
[1644502967983,25.2821,106.98,106.89,45.62032139]
[1644502968684,11.25,106.98,106.89,45.62032139]
[1644502968887,45.7843,107.02,106.89,45.62032139]
[1644502969086,45.7843,107.02,106.89,65.88524167]
[1644502969288,57.0343,107.02,106.9,0.024]
[1644502969484,4.674,107.01,106.9,0.024]
[1644502969689,57.0343,107.02,106.89,64.56748471]
[1644502969891,57.0343,107.02,106.9,0.024]
[1644502970487,71.06,107.02,106.9,0.024]
[1644502970788,4.674,107.01,106.9,0.024]
[1644502970988,11.25,107.0,106.89,45.64432139]
[1644502971288,4.675,106.99,106.89,45.64432139]
[1644502971488,25.2808,106.98,106.89,45.62032139]
[1644502971688,11.25,106.98,106.89,45.62032139]
[1644502972290,11.25,106.98,106.89,45.87032139]
[1644502972491,11.25,106.98,106.88,4.699]
[1644502972691,2.23122154,106.97,106.86,0.024]
[1644502972894,15.926,106.96,106.86,0.024]
[1644502973097,11.25,106.96,106.84,0.024]
[1644502973292,11.25,106.96,106.83,4.7]
[1644502973492,11.25,106.96,106.84,45.6432234]
[1644502973892,11.25,106.96,106.84,59.6750234]
[1644502974093,11.25,106.98,106.84,78.59818672]
[1644502974300,11.25,106.99,106.85,0.024]
[1644502974495,11.25,106.99,106.86,4.676]
[1644502974694,11.25,106.99,106.87,0.024]
[1644502975297,4.676,107.01,106.87,0.024]
[1644502975500,13.48122154,107.01,106.88,4.675]
[1644502975697,4.675,107.0,106.89,36.08516974]
[1644502975899,11.25,106.99,106.89,36.06116974]
[1644502976097,11.25,106.99,106.89,42.08516974]
[1644502976298,11.25,106.99,106.89,36.06116974]
[1644502976498,6.90622154,106.98,106.89,36.06116974]
[1644502976699,11.25,106.97,106.89,36.06116974]
[1644502977699,11.25,106.97,106.87,4.699]
[1644502977899,13.48122154,106.97,106.85,0.024]
[1644502978102,13.48122154,106.97,106.83,4.7]
[1644502978299,4.676,106.96,106.84,0.024]
[1644502978501,4.676,106.96,106.82,0.024]
[1644502978502,11.25,106.95,106.82,0.024]
[1644502978700,4.676,106.94,106.8,48.35297443]
[1644502978904,11.25,106.93,106.81,0.024]
[1644502979101,4.678,106.92,106.81,0.024]
[1644502979301,11.25,106.91,106.8,48.35297443]
[1644502979501,11.25,106.9,106.81,0.024]
[1644502979701,11.25,106.89,106.8,48.32897443]
[1644502979901,11.25,106.89,106.81,0.024]
[1644502980102,11.25,106.89,106.8,48.32897443]
[1644502981120,11.25,106.91,106.8,53.00797443]
[1644502981321,11.25,106.91,106.8,48.32897443]
[1644502981922,11.25,106.91,106.8,54.32897443]
[1644502982524,11.25,106.91,106.81,4.679]
[1644502982722,11.25,106.91,106.81,10.679]
[1644502983022,11.25,106.91,106.81,10.929]
[1644502983424,24.6165,106.93,106.81,10.929]
[1644502983622,24.6165,106.93,106.81,10.953]
[1644502983823,52.13622154,106.93,106.81,4.703]
[1644502984025,4.678,106.92,106.81,0.024]
[1644502984225,11.25,106.91,106.8,0.024]
[1644502984424,15.929,106.9,106.81,0.024]
[1644502984624,15.929,106.9,106.79,0.024]
[1644502984825,18.16022154,106.9,106.76,0.024]
[1644502985024,16.27502154,106.89,106.76,0.024]
[1644502985225,15.93,106.88,106.84,100.0]
[1644502985525,74.0,106.87,106.76,0.024]
[1644502985732,15.93,106.86,106.75,0.024]
[1644502985926,11.25,106.85,106.73,0.024]
[1644502986125,4.682,106.84,106.73,0.024]
[1644502986325,25.3021,106.83,106.72,114.324]
[1644502986525,25.3021,106.83,106.73,42.89164054]
[1644502986725,25.3021,106.83,106.73,48.89164054]
[1644502987025,25.3021,106.83,106.73,42.89164054]
[1644502987425,25.3021,106.83,106.72,0.024]
[1644502987625,27.53332154,106.83,106.72,0.024]
[1644502988232,36.48122476,106.83,106.72,0.024]
[1644502988427,36.48122476,106.83,106.71,9.141]
[1644502988428,14.0609,106.79,106.71,0.0001]
[1644502988627,11.25,106.78,106.71,0.0241]
[1644502988827,11.25,106.78,106.71,0.0001]
[1644502989229,4.684,106.78,106.71,0.0001]
[1644502989429,4.684,106.79,106.71,0.0001]
[1644502989629,15.934,106.79,106.71,0.0001]
[1644502989829,14.0613,106.76,106.71,0.0001]
[1644502990229,11.25,106.75,106.71,0.0001]
[1644502991533,14.064,106.74,106.71,0.0001]
[1644502991828,25.314,106.74,106.71,0.0001]
[1644502992629,11.25,106.74,106.71,0.0001]
[1644502993632,51.5737,106.73,106.71,0.0001]
[1644502993930,25.3169,106.72,106.71,0.0001]
[1644502994130,27.54812154,106.72,106.71,0.0001]
[1644502994331,25.3169,106.72,106.71,0.0001]
[1644502994932,11.25,106.72,106.71,0.0001]
[1644502995733,11.25,106.76,106.71,6.06449994]
[1644502995936,11.25,106.79,106.72,45.98610553]
[1644502996135,14.0554,106.8,106.72,45.98610553]
[1644502996732,11.25,106.81,106.72,45.98610553]
[1644502996933,28.9504,106.82,106.72,45.98610553]
[1644502997133,14.0509,106.84,106.72,46.23610553]
[1644502997334,11.25,106.86,106.73,4.682]
[1644502997533,25.1621,106.86,106.74,41.01514507]
[1644502997734,4.681,106.85,106.74,58.88814507]
[1644502997933,23.4002,106.89,106.75,118.981]
[1644502998135,23.4002,106.89,106.76,36.66260137]
[1644502998334,23.4002,106.89,106.77,4.68]
[1644502998538,4.68,106.88,106.78,36.12232855]
[1644502998733,4.68,106.88,106.78,42.14632855]
[1644502998734,11.25,106.88,106.78,42.14632855]
[1644502998934,11.25,106.88,106.78,42.12232855]
[1644502999133,13.48122154,106.88,106.78,42.12232855]
[1644502999335,11.25,106.88,106.78,36.37232855]
[1644502999734,11.25,106.88,106.78,42.37232855]
[1644502999935,11.25,106.91,106.79,4.68]
[1644503000135,11.25,106.91,106.8,40.47595233]
[1644503000335,11.25,106.91,106.82,39.22972852]
[1644503001139,6.91022154,106.95,106.82,39.47972852]
[1644503001337,93.097,106.96,106.83,4.676]
[1644503001552,4.676,106.95,106.84,34.96681613]
[1644503001738,11.25,106.95,106.84,39.66681613]
[1644503001936,15.926,106.95,106.84,34.99081613]
[1644503002136,29.9634,106.95,106.84,34.99081613]
[1644503002337,32.19462154,106.95,106.84,34.99081613]
[1644503002539,0.45,106.93,106.84,0.024]
[1644503002738,15.926,106.92,106.78,0.024]
[1644503002938,11.25,106.91,106.78,0.024]
[1644503003243,18.7221,106.9,106.78,0.024]
[1644503003439,25.2931,106.9,106.8,44.68301989]
[1644503003640,11.25,106.9,106.8,44.68301989]
[1644503003838,11.25,106.9,106.8,44.93301989]
[1644503004139,11.25,106.93,106.8,54.31101989]
[1644503004340,11.25,106.93,106.81,0.024]
[1644503005639,15.928,106.93,106.81,0.024]
[1644503006739,11.25,106.93,106.82,4.678]
[1644503006941,11.25,106.93,106.83,37.48811608]
[1644503007340,11.25,106.93,106.83,37.73811608]
[1644503010648,4.678,106.95,106.83,37.73811608]
[1644503010848,4.676,107.0,106.84,1.81445584]
[1644503011049,82.0947,107.03,106.85,45.73538216]
[1644503011247,82.0947,107.03,106.85,52.00938216]
[1644503011450,35.2905,107.03,106.86,1.83845584]
[1644503011647,35.2905,107.03,106.87,102.10311463]
[1644503011849,39.9655,107.03,106.87,203.90757047]
[1644503012048,35.2905,107.03,106.88,4.675]
[1644503012249,35.2905,107.03,106.89,34.52652142]
[1644503012448,11.25,107.03,106.92,14.0213]
[1644503012649,11.25,107.06,106.93,40.67027973]
[1644503012851,39.6145,107.1,106.93,48.73473557]
[1644503013050,37.7011,107.1,106.94,13.06445584]
[1644503013347,23.6915,107.1,106.95,55.7138077]
[1644503013548,62.0236,107.13,106.95,55.7138077]
[1644503013549,62.0236,107.13,106.97,37.17595328]
[1644503013748,57.3516,107.13,106.99,42.82467973]
[1644503014151,57.3516,107.13,106.99,49.07467973]
[1644503014548,73.59642154,107.13,106.99,49.07467973]
[1644503014749,73.59642154,107.13,106.99,42.82467973]
[1644503014951,5.12,107.12,106.96,69.1358]
[1644503015250,19.99433824,107.11,106.96,22.7555]
[1644503015450,4.671,107.1,106.96,22.7555]
[1644503015649,25.2701,107.09,106.96,22.7555]
[1644503015850,11.25,107.09,106.97,4.671]
[1644503016152,11.25,107.09,106.98,43.0863872]
[1644503016351,11.25,107.09,106.98,43.3363872]
[1644503017852,4.671,107.08,106.98,43.3363872]
[1644503018052,11.25,107.09,106.98,43.3363872]
[1644503018452,57.3516,107.13,107.0,41.54448607]
[1644503018652,4.671,107.14,107.0,41.54448607]
[1644503018852,11.25,107.15,107.02,48.72172672]
[1644503019055,4.668,107.14,107.01,6.47815074]
[1644503019256,25.49495109,107.13,106.98,9.60489981]
[1644503019453,20.22999914,107.13,106.96,22.7555]
[1644503019652,14.54315788,107.12,106.96,28.7555]
[1644503019853,11.25,107.11,106.96,28.7555]
[1644503020056,4.671,107.1,106.97,39.30393566]
[1644503020254,11.25,107.09,106.97,39.30393566]
[1644503020456,4.671,107.08,106.97,39.55393566]
[1644503021558,11.25,107.09,106.98,4.671]
[1644503021779,36.0514,107.12,106.99,38.62754772]
[1644503021956,36.0514,107.12,107.0,4.67]
[1644503022158,36.0514,107.12,107.01,45.72344436]
[1644503022357,36.0514,107.12,107.01,45.97344436]
[1644503022856,40.7214,107.12,107.01,45.97344436]
[1644503023156,36.0514,107.12,107.01,45.97344436]
[1644503023757,36.0514,107.12,107.01,0.25]
[1644503023957,36.0514,107.12,106.92,4.67]
[1644503023958,0.31420015,107.1,106.92,4.67]
[1644503024159,11.25,107.09,106.92,4.67]
[1644503024456,11.25,107.09,106.88,72.0604]
[1644503024457,5.122,107.08,106.88,72.0604]
[1644503024658,11.7,107.07,106.88,72.0604]
[1644503024856,4.673,107.06,106.89,48.69345557]
[1644503025156,14.0258,107.03,106.89,62.71825557]
[1644503025355,11.25,107.02,106.89,62.71825557]
[1644503025556,11.25,107.02,106.89,68.71825557]
[1644503025958,11.25,107.06,106.89,81.77840631]
[1644503026159,4.674,107.11,106.95,14.0139]
[1644503026458,4.674,107.11,106.96,36.72011705]
[1644503026459,11.25,107.11,106.96,36.72011705]
[1644503026662,54.322825,107.1,106.96,1.81015074]
[1644503026859,0.758977,107.06,106.88,1.31775696]
[1644503027062,15.924,107.05,106.87,1.34175696]
[1644503027260,22.9795,107.04,106.88,4.674]
[1644503027559,11.25,107.03,106.89,46.43351291]
[1644503027759,15.924,107.03,106.89,46.43351291]
[1644503028260,15.924,107.03,106.89,52.68351291]
[1644503028461,29.9482,107.03,106.9,14.0232]
[1644503028663,29.9482,107.03,106.91,47.35519421]
[1644503028961,25.2742,107.03,106.91,47.60519421]
[1644503029463,4.674,107.05,106.92,11.25]
[1644503029662,4.674,107.05,106.93,36.08408989]
[1644503029861,14.0146,107.1,106.94,11.25]
[1644503030161,14.0146,107.1,106.95,42.92942131]
[1644503030361,14.0146,107.1,106.95,65.10042131]
[1644503030762,14.0146,107.1,106.95,79.11522131]
[1644503030965,14.0146,107.1,106.95,76.61522131]
[1644503031764,14.0146,107.1,106.95,76.36522131]
[1644503031962,4.671,107.09,106.95,71.69422131]
[1644503032161,14.0168,107.08,106.95,76.36622131]
[1644503032765,45.3026,107.1,106.95,170.10622131]
[1644503033161,45.3026,107.1,106.95,170.35622131]
[1644503033762,59.3165,107.1,106.95,170.35622131]
[1644503035364,14.0139,107.1,106.95,170.35622131]
[1644503035566,11.25,107.11,106.95,170.35622131]
[1644503035766,11.25,107.11,106.95,184.3049086]
[1644503036368,11.25,107.11,106.95,170.35622131]
[1644503036564,11.25,107.11,106.95,178.45533737]
[1644503036794,11.25,107.11,106.95,178.20533737]
[1644503037774,25.2623,107.11,106.95,178.20533737]
[1644503037973,25.2623,107.11,106.95,231.14533737]
[1644503038179,14.0123,107.11,106.95,246.13281428]
[1644503038380,98.833,107.14,106.95,291.94281428]
[1644503038580,98.833,107.14,106.97,93.74]
[1644503038781,14.0095,107.13,107.02,93.74]
[1644503038979,14.0095,107.13,107.03,40.46078312]
[1644503039383,14.0095,107.13,107.03,46.71078312]
[1644503040183,18.6775,107.13,107.03,40.71078312]
[1644503041388,14.0095,107.13,107.03,40.71078312]
[1644503041887,14.0095,107.13,107.03,40.46078312]
[1644503042085,3.50174274,107.12,107.03,40.46078312]
[1644503042285,14.013,107.1,107.03,40.46078312]
[1644503042484,1.2705212,107.12,107.03,40.46078312]
[1644503042485,11.25,107.13,107.03,40.46078312]
[1644503043286,11.25,107.13,107.03,40.71078312]
[1644503043687,14.0102,107.12,107.03,40.71078312]
[1644503044497,52.1229,107.14,107.03,40.71078312]
[1644503044695,12.5205212,107.15,107.03,40.71078312]
[1644503044895,4.668,107.14,107.03,40.71078312]
[1644503045294,20.90732154,107.14,107.03,54.71838312]
[1644503045497,18.6761,107.14,107.03,60.71838312]
[1644503045695,18.6761,107.14,107.03,54.71838312]
[1644503046696,18.6761,107.14,107.03,60.71838312]
[1644503047100,4.668,107.14,107.03,62.51026477]
[1644503047297,4.668,107.14,107.03,156.25026477]
[1644503047498,0.02789049,107.16,107.03,156.25026477]
[1644503047698,0.02789049,107.16,107.03,60.71838312]
[1644503047900,1.29841169,107.16,107.03,60.71838312]
[1644503048099,1.29841169,107.16,107.03,54.71838312]
[1644503048300,14.0063,107.15,107.03,60.71838312]
[1644503048500,4.668,107.14,107.03,54.46838312]
[1644503048699,4.668,107.15,107.03,54.46838312]
[1644503048899,4.668,107.15,107.03,60.46838312]
[1644503049100,4.668,107.15,107.03,62.26026477]
[1644503049299,4.668,107.15,107.03,56.26026477]
[1644503049502,4.668,107.15,107.03,54.46838312]
[1644503049701,14.0073,107.14,107.03,60.46838312]
[1644503049900,14.0073,107.14,107.03,60.71838312]
[1644503050101,14.0073,107.14,107.05,34.41972664]
[1644503050303,14.0073,107.14,107.05,34.66972664]
[1644503051702,14.0073,107.14,107.05,48.67542664]
[1644503052003,14.03279049,107.16,107.05,48.67542664]
[1644503052206,16.26401203,107.16,107.05,34.41972664]
[1644503052414,17.53453323,107.16,107.05,34.41972664]
[1644503052704,1.2705212,107.15,107.05,34.41972664]
[1644503052906,4.668,107.14,107.05,34.41972664]
[1644503053408,0.02789049,107.16,107.05,40.41972664]
[1644503053607,5.96641169,107.17,107.05,40.66972664]
[1644503053806,0.02789049,107.16,107.05,34.66972664]
[1644503054007,0.02789049,107.17,107.05,40.66972664]
[1644503054209,0.02789049,107.16,107.05,134.40972664]
[1644503054410,14.0046,107.16,107.06,4.668]
[1644503054608,14.03249049,107.16,107.07,37.73694766]
[1644503054812,14.0046,107.16,107.07,37.98694766]
[1644503055209,18.52269049,107.18,107.07,37.98694766]
[1644503055607,19.79321169,107.18,107.07,37.73694766]
[1644503056410,15.12521169,107.18,107.07,37.73694766]
[1644503056609,13.85469049,107.18,107.07,37.73694766]
[1644503056809,27.85669049,107.18,107.07,51.73974766]
[1644503057109,37.765272,107.17,107.06,4.668]
[1644503057412,1.2705212,107.15,107.0,76.0852]
[1644503057609,15.918,107.14,107.0,76.0852]
[1644503058009,29.9268,107.14,107.01,39.9460106]
[1644503058210,32.15802154,107.14,107.01,39.9460106]
[1644503058411,31.1973212,107.14,107.01,39.9460106]
[1644503058612,29.9268,107.14,107.01,39.9460106]
[1644503059111,31.1973212,107.14,107.01,39.9460106]
[1644503059513,14.0116,107.1,107.01,14.011]
[1644503059713,11.25,107.09,106.99,4.668]
[1644503059916,4.671,107.08,106.95,1.31775696]
[1644503060115,11.25,107.07,106.94,1.31775696]
[1644503060315,11.25,107.06,106.93,1.31775696]
[1644503060516,25.2699,107.06,106.94,52.95259113]
[1644503060813,25.2699,107.06,106.95,4.672]
[1644503061013,25.2699,107.06,106.96,46.34992008]
[1644503061217,11.25,107.08,106.97,93.74]
[1644503061413,1.2705212,107.1,106.96,48.13490775]
[1644503061414,1.2705212,107.1,106.99,93.74]
[1644503061614,14.0112,107.1,107.0,54.01690214]
[1644503061816,14.0112,107.1,107.0,60.26690214]
[1644503062417,14.0112,107.1,107.01,11.25]
[1644503062615,14.0112,107.1,107.02,51.43888307]
[1644503062815,14.0112,107.1,107.02,51.68888307]
[1644503063016,14.0094,107.12,107.02,51.68888307]
[1644503063216,14.0094,107.12,107.02,53.47924823]
[1644503063415,47.9640212,107.15,107.03,4.668]
[1644503063616,0.02789049,107.16,107.04,49.3429329]
[1644503063818,1.29841169,107.17,107.07,47.14159056]
[1644503064016,14.03209049,107.16,107.07,47.14159056]
[1644503064216,14.0042,107.16,107.07,47.39159056]
[1644503065815,14.0042,107.16,107.07,67.39509056]
[1644503066016,14.0042,107.16,107.07,61.39509056]
[1644503066616,14.0042,107.16,107.07,67.39509056]
[1644503066817,15.2716212,107.18,107.07,61.39509056]
[1644503067016,1.2705212,107.18,107.07,66.06209056]
[1644503067417,1.2705212,107.18,107.07,77.31209056]
[1644503067618,47.97531169,107.19,107.07,77.31209056]
[1644503067816,47.97531169,107.19,107.07,72.64509056]
[1644503068231,2.42682177,107.21,107.08,132.0]
[1644503068420,0.53911056,107.24,107.13,13.9971]
[1644503068624,4.666,107.29,107.19,9.75135291]
[1644503068817,0.00153548,107.24,107.2,49.0]
[1644503069017,5.08729163,107.3,107.21,77.0]
[1644503069219,5.08729163,107.3,107.19,10.00135291]
[1644503069220,13.9879,107.32,107.2,79.0]
[1644503069419,1.27064036,107.31,107.21,1.79036516]
[1644503069619,1.27064036,107.31,107.22,37.41766959]
[1644503069821,1.27064036,107.32,107.22,37.66766959]
[1644503070018,1.27064036,107.32,107.22,37.41766959]
[1644503070220,1.27064036,107.32,107.22,37.66766959]
[1644503070418,1.27064036,107.32,107.22,37.41766959]
[1644503070624,1.27064036,107.33,107.22,37.41766959]
[1644503070819,1.27064036,107.32,107.22,37.66766959]
[1644503071018,7.19949381,107.35,107.22,37.66766959]
[1644503071019,1.27064036,107.33,107.22,37.66766959]
[1644503071220,1.27064036,107.33,107.22,42.32766959]
[1644503071422,12.52064036,107.35,107.22,136.06766959]